bitfinex-derivatives/quotes_BTCF0:USTF0_20260118
["timestamp","ask_amount","ask_price","bid_price","bid_amount"]
[1768766246609,0.02278079,95427.0,95419.0,0.2277466]
[1768766246915,0.010482,95429.0,95419.0,0.2277466]
[1768766247114,0.02278081,95428.0,95419.0,0.2277466]
[1768766247417,0.02278081,95427.0,95419.0,0.2277466]
[1768766247712,0.010482,95429.0,95419.0,0.2277466]
[1768766247915,0.02278073,95428.0,95419.0,0.2277466]
[1768766248116,0.02278073,95427.0,95419.0,0.2277466]
[1768766248307,0.09436,95431.0,95419.0,0.2277466]
[1768766248508,0.02278077,95430.0,95419.0,0.2277466]
[1768766248714,0.02278077,95429.0,95419.0,0.2277466]
[1768766249017,0.02278077,95428.0,95419.0,0.2277466]
[1768766249209,0.09436,95431.0,95419.0,0.2277466]
[1768766249508,0.02278077,95430.0,95419.0,0.2277466]
[1768766249710,0.02278077,95429.0,95419.0,0.2277466]
[1768766249918,0.02278077,95428.0,95419.0,0.2277466]
[1768766250119,0.09436,95431.0,95419.0,0.2277466]
[1768766250315,0.02278078,95430.0,95419.0,0.2277466]
[1768766250615,0.02278078,95429.0,95419.0,0.2277466]
[1768766250914,0.02278078,95428.0,95419.0,0.2277466]
[1768766251215,0.09436,95431.0,95419.0,0.2277466]
[1768766251417,0.02278081,95430.0,95419.0,0.2277466]
[1768766251613,0.02278081,95429.0,95421.0,0.21018711]
[1768766251813,0.09436,95431.0,95425.0,0.09374548]
[1768766252513,0.010481,95437.0,95426.0,0.11644163]
[1768766252713,0.08582812,95452.0,95419.0,0.01600465]
[1768766252714,0.09436,95436.0,95431.0,0.09374548]
[1768766254311,0.09436,95439.0,95431.0,0.09374548]
[1768766254817,0.010481,95438.0,95431.0,0.09374548]
[1768766256519,0.010481,95438.0,95431.0,0.05662748]
[1768766257230,0.010481,95438.0,95431.0,0.04783348]
[1768766259525,0.010481,95438.0,95419.0,0.01600465]
[1768766259827,0.010481,95438.0,95416.0,0.010484]
[1768766260911,0.09436,95439.0,95415.0,0.09436]
[1768766261520,0.09436,95439.0,95416.0,0.0941038]
[1768766261919,0.11394019,95436.0,95416.0,0.0941038]
[1768766262226,0.11394019,95436.0,95416.0,0.10927406]
[1768766263933,0.02260848,95435.0,95416.0,0.10927406]
[1768766264234,0.02260848,95434.0,95416.0,0.10927406]
[1768766264530,0.02260848,95433.0,95416.0,0.10927406]
[1768766264732,0.11394019,95436.0,95416.0,0.10927406]
[1768766264922,0.02260829,95435.0,95416.0,0.10927406]
[1768766265122,0.02260829,95434.0,95416.0,0.10927406]
[1768766265327,0.02260829,95433.0,95416.0,0.10927406]
[1768766265517,0.11394019,95436.0,95416.0,0.10927406]
[1768766265720,0.02260815,95435.0,95416.0,0.10927406]
[1768766266027,0.02260815,95434.0,95416.0,0.10927406]
[1768766266227,0.02260815,95433.0,95416.0,0.10927406]
[1768766266431,0.010482,95431.0,95416.0,0.10927406]
[1768766268932,0.10451404,95430.0,95416.0,0.10927406]
[1768766269537,0.010482,95431.0,95416.0,0.10927406]
[1768766269832,0.010482,95429.0,95416.0,0.10927406]
[1768766272130,0.010482,95427.0,95416.0,0.10927406]
[1768766272328,0.010482,95429.0,95416.0,0.10927406]
[1768766273322,0.10451404,95430.0,95416.0,0.10927406]
[1768766273936,0.09436,95439.0,95416.0,0.10927406]
[1768766274125,0.10451404,95430.0,95416.0,0.10927406]
[1768766274429,0.10451404,95430.0,95420.0,0.09625535]
[1768766276135,0.09436,95439.0,95420.0,0.09625535]
[1768766276319,0.10451404,95430.0,95421.0,0.09625535]
[1768766276723,0.10451404,95431.0,95421.0,0.09625535]
[1768766281932,0.09436,95435.0,95422.0,0.00202621]
[1768766282129,0.10451404,95432.0,95421.0,0.09482026]
[1768766285739,0.09436,95435.0,95421.0,0.09482026]
[1768766285929,0.10451404,95431.0,95421.0,0.09482026]
[1768766289943,0.09436,95435.0,95421.0,0.09482026]
[1768766290152,0.10451404,95431.0,95421.0,0.09482026]
[1768766296746,0.10451404,95431.0,95418.0,0.00202621]
[1768766298047,0.09436,95435.0,95418.0,0.00202621]
[1768766298243,0.10451404,95430.0,95418.0,0.00202621]
[1768766300047,0.10451404,95430.0,95416.0,0.01517026]
[1768766300238,0.10451404,95430.0,95415.0,0.09482026]
[1768766302547,0.010482,95431.0,95415.0,0.09482026]
[1768766302745,0.10451404,95430.0,95415.0,0.09482026]
[1768766302946,0.010483,95426.0,95411.0,0.00200323]
[1768766303146,0.010483,95426.0,95411.0,0.11359806]
[1768766303339,0.10451404,95421.0,95411.0,0.11919526]
[1768766303544,0.10451404,95421.0,95411.0,0.01439818]
[1768766303746,0.10451404,95421.0,95406.0,0.09436]
[1768766304355,0.010483,95423.0,95406.0,0.09436]
[1768766304738,0.10451404,95420.0,95406.0,0.09436]
[1768766306341,0.10451404,95420.0,95406.0,0.10828166]
[1768766311352,0.010484,95417.0,95406.0,0.10828166]
[1768766311553,0.10451404,95420.0,95406.0,0.10828166]
[1768766312545,0.010484,95417.0,95406.0,0.10828166]
[1768766312748,0.10451404,95420.0,95406.0,0.10828166]
[1768766314553,0.010484,95417.0,95406.0,0.10828166]
[1768766314753,0.10451404,95420.0,95406.0,0.10828166]
[1768766330468,0.11439222,95419.0,95406.0,0.10828166]
[1768766330669,0.20774771,95419.0,95406.0,0.10828166]
[1768766330867,0.11439222,95418.0,95406.0,0.10828166]
[1768766331967,0.11439222,95424.0,95406.0,0.10828166]
[1768766332268,0.11439222,95424.0,95406.0,0.01392166]
[1768766332459,0.11439222,95424.0,95400.0,0.09568599]
[1768766332660,0.11439222,95424.0,95400.0,0.18810374]
[1768766332870,0.11439222,95424.0,95401.0,0.10480861]
[1768766334071,0.11439222,95424.0,95401.0,0.1985447]
[1768766334670,0.11439222,95424.0,95401.0,0.21232381]
[1768766336777,0.11439222,95424.0,95402.0,0.00132531]
[1768766337482,0.11439222,95424.0,95403.0,0.10480807]
[1768766340080,0.11439222,95424.0,95404.0,0.00119295]
[1768766340283,0.09436,95425.0,95406.0,0.0936107]
[1768766341078,0.20990971,95425.0,95406.0,0.0936107]
[1768766341283,0.20990971,95425.0,95406.0,0.09241775]
[1768766341482,0.11554971,95424.0,95406.0,0.09241775]
[1768766345491,0.11554971,95424.0,95403.0,0.00143449]
[1768766345883,0.11554971,95424.0,95405.0,0.09241775]
[1768766382521,0.11121353,95423.0,95401.0,0.01377911]
[1768766382711,0.11121353,95422.0,95400.0,0.26772934]
[1768766382912,0.11121353,95422.0,95404.0,0.10480587]
[1768766383111,0.11121353,95422.0,95402.0,0.010485]
[1768766384020,0.11121353,95422.0,95403.0,0.10480971]
[1768766385918,0.11121353,95422.0,95404.0,0.010485]
[1768766386618,0.11121353,95422.0,95405.0,0.10480807]
[1768766391120,0.11121353,95422.0,95406.0,0.010485]
[1768766393025,0.10453352,95420.0,95406.0,0.010485]
[1768766393626,0.10453352,95420.0,95402.0,0.010485]
[1768766394127,0.10453352,95420.0,95404.0,0.010485]
[1768766394723,0.10453352,95420.0,95405.0,0.10480971]
[1768766395828,0.10453352,95420.0,95406.0,0.010485]
[1768766398628,0.10453352,95420.0,95402.0,0.010485]
[1768766398926,0.10453352,95420.0,95402.0,0.11529252]
[1768766399625,0.11121353,95422.0,95402.0,0.11529252]
[1768766399822,0.10453352,95420.0,95402.0,0.11529252]
[1768766400126,0.11121353,95422.0,95402.0,0.11529252]
[1768766400327,0.10453352,95420.0,95404.0,0.010485]
[1768766400519,0.10453352,95420.0,95402.0,0.10480752]
[1768766400714,0.10453352,95420.0,95401.0,0.10701903]
[1768766401028,0.10453352,95420.0,95402.0,0.10480971]
[1768766401429,0.10453352,95420.0,95402.0,0.11529471]
[1768766402126,0.22186234,95420.0,95402.0,0.11529471]
[1768766402324,0.09957045,95419.0,95402.0,0.10480971]
[1768766402522,0.10453352,95412.0,95402.0,0.10480971]
[1768766402731,0.09957045,95404.0,95391.0,0.09436]
[1768766403024,0.10453352,95410.0,95396.0,0.10480971]
[1768766403331,0.10453352,95410.0,95390.0,0.10453352]
[1768766403520,0.10453352,95410.0,95397.0,0.10482454]
[1768766403719,0.10453352,95410.0,95390.0,0.10453352]
[1768766404022,0.10453352,95410.0,95391.0,0.10482454]
[1768766404625,0.010484,95408.0,95391.0,0.10482454]
[1768766405022,0.11732882,95407.0,95391.0,0.10482454]
[1768766405916,0.11732882,95405.0,95391.0,0.10482454]
[1768766406232,0.11732882,95400.0,95389.0,0.09436]
[1768766406423,0.11732882,95400.0,95382.0,0.0935582]
[1768766406630,0.10453352,95392.0,95384.0,0.1048229]
[1768766406927,0.11732882,95394.0,95382.0,0.01366383]
[1768766407127,0.11732882,95394.0,95377.0,0.0935582]
[1768766407327,0.11732882,95394.0,95378.0,0.010488]
[1768766407529,0.11732882,95394.0,95381.0,0.010487]
[1768766407725,0.09957045,95399.0,95381.0,0.010487]
[1768766407928,0.11732882,95398.0,95381.0,0.010487]
[1768766408127,0.11732882,95398.0,95382.0,0.10483498]
[1768766408328,0.11732882,95398.0,95383.0,0.010487]
[1768766413531,0.11732882,95408.0,95390.0,0.0935582]
[1768766413739,0.21168882,95413.0,95396.0,0.010486]
[1768766413928,0.11732882,95412.0,95396.0,0.010486]
[1768766414132,0.11732882,95412.0,95395.0,0.0935582]
[1768766414334,0.09436,95414.0,95395.0,0.0935582]
[1768766414626,0.21168882,95414.0,95395.0,0.0935582]
[1768766415143,0.11732882,95413.0,95395.0,0.0935582]
[1768766415544,0.11732882,95413.0,95398.0,0.010486]
[1768766415735,0.11732882,95413.0,95400.0,0.10453352]
[1768766415931,0.11732882,95413.0,95398.0,0.010486]
[1768766417247,0.11732882,95413.0,95396.0,0.010486]
[1768766417642,0.11732882,95413.0,95397.0,0.10481576]
[1768766424646,0.11732882,95413.0,95400.0,0.10453352]
[1768766426055,0.11732882,95413.0,95396.0,0.010486]
[1768766426354,0.11732882,95413.0,95397.0,0.10481466]
[1768766427659,0.10453352,95410.0,95397.0,0.10481466]
[1768766427946,0.11199907,95409.0,95397.0,0.10481466]
[1768766431459,0.20325192,95406.0,95388.0,0.010487]
[1768766431657,0.11199907,95399.0,95388.0,0.0944]
[1768766436763,0.11199907,95399.0,95384.0,0.010487]
[1768766436956,0.11199907,95399.0,95384.0,0.104847]
[1768766437157,0.11199907,95399.0,95385.0,0.10482894]
[1768766438363,0.12248407,95399.0,95382.0,0.010487]
[1768766439463,0.12248407,95399.0,95383.0,0.10483059]
[1768766440768,0.010486,95396.0,95383.0,0.10483059]
[1768766440960,0.12248407,95399.0,95383.0,0.10483059]
[1768766441162,0.12248407,95399.0,95381.0,0.010487]
[1768766441468,0.12248407,95399.0,95382.0,0.10483169]
[1768766443065,0.11819721,95402.0,95385.0,0.010487]
[1768766443374,0.10453352,95400.0,95385.0,0.10217822]
[1768766443559,0.11819721,95402.0,95388.0,0.010487]
[1768766444173,0.11819721,95402.0,95385.0,0.10217822]
[1768766445767,0.10453352,95400.0,95385.0,0.09169122]
[1768766445975,0.11819721,95406.0,95390.0,0.10453352]
[1768766447474,0.11819721,95406.0,95390.0,0.11501952]
[1768766450073,0.104884,95409.0,95392.0,0.10217722]
[1768766450379,0.22308121,95409.0,95392.0,0.10217722]
[1768766450566,0.010485,95407.0,95392.0,0.09169122]
[1768766450875,0.12868221,95407.0,95392.0,0.09169122]
[1768766452776,0.11819721,95407.0,95387.0,0.09935299]
[1768766453077,0.12391513,95401.0,95387.0,0.09935299]
[1768766456683,0.010486,95399.0,95387.0,0.09935299]
[1768766456975,0.11343013,95399.0,95381.0,0.09935299]
[1768766457380,0.12391613,95399.0,95381.0,0.20418138]
[1768766458072,0.12391613,95399.0,95381.0,0.10482839]
[1768766458376,0.12391613,95399.0,95379.0,0.07534508]
[1768766458883,0.12391613,95399.0,95380.0,0.10483279]
[1768766460782,0.12391613,95397.0,95380.0,0.10483279]
[1768766462182,0.12391613,95397.0,95381.0,0.09935299]
[1768766462382,0.11343013,95397.0,95381.0,0.09935299]
[1768766462886,0.12391513,95401.0,95382.0,0.20418743]
[1768766463187,0.12391513,95401.0,95382.0,0.09935299]
[1768766463489,0.12391513,95401.0,95383.0,0.10483114]
[1768766464889,0.010486,95399.0,95383.0,0.10483114]
[1768766465192,0.12391613,95399.0,95383.0,0.10483114]
[1768766465577,0.11343013,95399.0,95383.0,0.10483114]
[1768766465775,0.11343013,95399.0,95377.0,0.01320726]
[1768766465776,0.11343013,95392.0,95377.0,0.01320726]
[1768766465983,0.11343013,95392.0,95377.0,0.010488]
[1768766466374,0.010486,95395.0,95377.0,0.10984099]
[1768766466578,0.010486,95395.0,95377.0,0.1240965]
[1768766468991,0.010486,95395.0,95377.0,0.1136085]
[1768766470591,0.12391613,95395.0,95377.0,0.1136085]
[1768766471391,0.12391613,95395.0,95378.0,0.010488]
[1768766471591,0.010486,95395.0,95379.0,0.09935299]
[1768766471896,0.010485,95400.0,95383.0,0.09935299]
[1768766473891,0.12391513,95400.0,95383.0,0.09935299]
[1768766477094,0.21831513,95400.0,95383.0,0.09935299]
[1768766478194,0.0944,95400.0,95384.0,0.10983999]
[1768766484396,0.0944,95400.0,95386.0,0.010487]
[1768766484781,0.010485,95405.0,95389.0,0.09832728]
[1768766484985,0.0944,95404.0,95389.0,0.09832728]
[1768766485492,0.104885,95405.0,95389.0,0.09832728]
[1768766488799,0.010485,95403.0,95389.0,0.09832728]
[1768766489300,0.0944,95405.0,95389.0,0.09832728]
[1768766491497,0.0944,95405.0,95390.0,0.010486]
[1768766492204,0.0944,95405.0,95390.0,0.10881328]
[1768766493795,0.0944,95405.0,95393.0,0.09832728]
[1768766495102,0.10845126,95410.0,95394.0,0.010486]
[1768766495298,0.09238874,95417.0,95393.0,0.09832728]
[1768766495299,0.11825357,95409.0,95397.0,0.10881328]
[1768766495499,0.11825357,95408.0,95397.0,0.10881328]
[1768766495699,0.02385357,95407.0,95397.0,0.10881328]
[1768766501504,0.10845126,95414.0,95400.0,0.010485]
[1768766501700,0.0944,95412.0,95400.0,0.010485]
[1768766501897,0.11622803,95422.0,95400.0,0.10749276]
[1768766502103,0.11622803,95422.0,95402.0,0.10749276]
[1768766502296,0.0944,95421.0,95402.0,0.10749276]
[1768766502502,0.21062803,95421.0,95402.0,0.10749276]
[1768766502703,0.11622803,95420.0,95402.0,0.10749276]
[1768766505512,0.11622803,95420.0,95402.0,0.09700776]
[1768766506310,0.11622803,95420.0,95402.0,0.10749276]
[1768766509717,0.11622803,95420.0,95402.0,0.09700776]
[1768766513520,0.02291041,95419.0,95402.0,0.09700776]
[1768766513735,0.13575156,95418.0,95402.0,0.09700776]
[1768766513920,0.02291041,95417.0,95402.0,0.09700776]
[1768766514119,0.11284115,95418.0,95402.0,0.09700776]
[1768766514319,0.02291076,95417.0,95402.0,0.09700776]
[1768766514520,0.11284115,95418.0,95402.0,0.09700776]
[1768766514718,0.02291095,95417.0,95402.0,0.09700776]
[1768766514921,0.11284115,95418.0,95402.0,0.09700776]
[1768766515220,0.02291092,95417.0,95402.0,0.09700776]
[1768766515414,0.11284115,95418.0,95402.0,0.09700776]
[1768766515621,0.02291068,95417.0,95402.0,0.09700776]
[1768766515816,0.11284115,95418.0,95402.0,0.09700776]
[1768766516015,0.02291067,95417.0,95402.0,0.09700776]
[1768766516324,0.11284115,95418.0,95403.0,0.010485]
[1768766516525,0.02291115,95417.0,95403.0,0.010485]
[1768766516822,0.11284115,95418.0,95403.0,0.010485]
[1768766517021,0.02291113,95417.0,95403.0,0.010485]
[1768766517225,0.11284115,95418.0,95403.0,0.010485]
[1768766517421,0.02291132,95417.0,95403.0,0.010485]
[1768766517623,0.11284115,95418.0,95403.0,0.010485]
[1768766517824,0.02291133,95417.0,95403.0,0.010485]
[1768766518124,0.11284115,95418.0,95403.0,0.010485]
[1768766518321,0.0229117,95417.0,95403.0,0.010485]
[1768766518527,0.11284115,95418.0,95403.0,0.010485]
[1768766518728,0.02291175,95417.0,95403.0,0.010485]
[1768766518934,0.11284115,95418.0,95403.0,0.010485]
[1768766519225,0.02291178,95417.0,95403.0,0.010485]
[1768766519425,0.11284115,95418.0,95403.0,0.010485]
[1768766519626,0.02291225,95417.0,95403.0,0.010485]
[1768766519827,0.11284115,95418.0,95403.0,0.010485]
[1768766520019,0.02291219,95417.0,95403.0,0.010485]
[1768766520221,0.11284115,95418.0,95403.0,0.010485]
[1768766521322,0.11284115,95418.0,95402.0,0.09700776]
[1768766522728,0.11284115,95418.0,95402.0,0.10749276]
[1768766529583,0.11284115,95418.0,95402.0,0.09700776]
[1768766532723,0.11284115,95418.0,95403.0,0.010485]
[1768766533331,0.11284115,95418.0,95402.0,0.09700776]
[1768766533534,0.10454532,95412.0,95396.0,0.0970773]
[1768766533830,0.10454532,95410.0,95396.0,0.0970773]
[1768766534532,0.11284115,95415.0,95396.0,0.0970773]
[1768766535538,0.12332515,95415.0,95396.0,0.0970773]
[1768766535728,0.010484,95413.0,95396.0,0.0970773]
[1768766541337,0.11284115,95415.0,95396.0,0.1075633]
[1768766541640,0.11284115,95415.0,95397.0,0.0970773]
[1768766542938,0.11284115,95415.0,95398.0,0.10618022]
[1768766543135,0.11318386,95419.0,95398.0,0.10618022]
[1768766543339,0.13570579,95418.0,95401.0,0.10617922]
[1768766543530,0.11318386,95418.0,95401.0,0.10617922]
[1768766544839,0.11318386,95418.0,95403.0,0.010485]
[1768766547136,0.11318386,95431.0,95413.0,0.09569422]
[1768766547334,0.11688184,95430.0,95413.0,0.09569422]
[1768766547534,0.11318386,95436.0,95420.0,0.10454532]
[1768766547736,0.09436,95433.0,95421.0,0.09569422]
[1768766556946,0.09436,95440.0,95424.0,0.09557028]
[1768766557149,0.19890532,95440.0,95424.0,0.09557028]
[1768766557445,0.31480225,95440.0,95424.0,0.09557028]
[1768766558143,0.11589693,95439.0,95417.0,0.10605328]
[1768766558343,0.11589693,95439.0,95420.0,0.10454532]
[1768766559746,0.11589693,95439.0,95420.0,0.2001156]
[1768766559947,0.11589693,95439.0,95421.0,0.09557028]
[1768766577055,0.02230908,95438.0,95421.0,0.09557028]
[1768766577252,0.1087741,95438.0,95421.0,0.09557028]
[1768766579060,0.1087741,95436.0,95421.0,0.09557028]
[1768766580461,0.09250657,95429.0,95406.0,0.07534508]
[1768766580656,0.1087741,95426.0,95403.0,0.0926167]
[1768766580862,0.1087741,95426.0,95403.0,0.1031017]
[1768766581460,0.1087741,95426.0,95407.0,0.0926167]
[1768766581762,0.1087741,95426.0,95408.0,0.0926167]
[1768766581962,0.09436,95428.0,95410.0,0.0926167]
[1768766582167,0.09250657,95440.0,95413.0,0.0926167]
[1768766582363,0.1087741,95438.0,95417.0,0.0926167]
[1768766582551,0.13107775,95437.0,95417.0,0.0926167]
[1768766582756,0.1087741,95435.0,95417.0,0.0926167]
[1768766582956,0.02230365,95434.0,95417.0,0.0926167]
[1768766583161,0.02230365,95433.0,95417.0,0.0926167]
[1768766583361,0.1087741,95435.0,95417.0,0.0926167]
[1768766583664,0.02229838,95434.0,95417.0,0.0926167]
[1768766583862,0.02229838,95433.0,95417.0,0.0926167]
[1768766584064,0.1087741,95435.0,95417.0,0.0926167]
[1768766584262,0.022298,95434.0,95417.0,0.0926167]
[1768766584463,0.022298,95433.0,95417.0,0.0926167]
[1768766584762,0.1087741,95435.0,95417.0,0.0926167]
[1768766584955,0.02229696,95434.0,95417.0,0.0926167]
[1768766585157,0.02229696,95433.0,95417.0,0.0926167]
[1768766585357,0.1087741,95435.0,95417.0,0.0926167]
[1768766585656,0.02229581,95434.0,95417.0,0.0926167]
[1768766585859,0.1087741,95435.0,95417.0,0.0926167]
[1768766586163,0.02229581,95434.0,95417.0,0.0926167]
[1768766586365,0.1087741,95435.0,95417.0,0.0926167]
[1768766586566,1.20796,95439.0,95419.0,0.0926167]
[1768766586567,0.02229483,95434.0,95419.0,0.0926167]
[1768766586861,0.1087741,95436.0,95419.0,0.0926167]
[1768766587055,0.13106889,95435.0,95419.0,0.0926167]
[1768766587255,0.02229479,95434.0,95419.0,0.0926167]
[1768766587462,0.1087741,95435.0,95419.0,0.0926167]
[1768766587662,0.02229411,95434.0,95419.0,0.0926167]
[1768766587864,0.1087741,95435.0,95419.0,0.0926167]
[1768766588165,0.02229411,95434.0,95419.0,0.0926167]
[1768766588354,0.1087741,95435.0,95419.0,0.0926167]
[1768766588555,0.02229353,95434.0,95419.0,0.0926167]
[1768766588756,0.1087741,95435.0,95419.0,0.0926167]
[1768766588965,0.02229352,95434.0,95419.0,0.0926167]
[1768766589167,0.1087741,95435.0,95419.0,0.0926167]
[1768766589366,0.02229326,95434.0,95419.0,0.0926167]
[1768766589566,0.1087741,95435.0,95419.0,0.0926167]
[1768766589870,0.02229304,95434.0,95419.0,0.0926167]
[1768766590168,0.1087741,95435.0,95419.0,0.0926167]
[1768766590368,0.02229281,95434.0,95419.0,0.0926167]
[1768766590568,0.1087741,95435.0,95419.0,0.0926167]
[1768766590872,0.02229268,95434.0,95419.0,0.0926167]
[1768766591169,0.1087741,95435.0,95419.0,0.0926167]
[1768766591359,0.02229248,95434.0,95419.0,0.0926167]
[1768766591559,0.1087741,95435.0,95419.0,0.0926167]
[1768766591767,0.02229242,95434.0,95419.0,0.0926167]
[1768766591960,0.1087741,95435.0,95419.0,0.0926167]
[1768766592162,0.02229242,95434.0,95419.0,0.0926167]
[1768766592363,0.1087741,95435.0,95419.0,0.0926167]
[1768766592670,0.02224367,95434.0,95419.0,0.0926167]
[1768766592856,0.1087741,95435.0,95419.0,0.0926167]
[1768766593054,0.13101777,95434.0,95419.0,0.0926167]
[1768766593261,0.1087741,95434.0,95412.0,0.0926167]
[1768766593869,0.1087741,95434.0,95413.0,0.0926167]
[1768766595262,0.1087741,95430.0,95409.0,0.05657903]
[1768766595463,0.1087741,95430.0,95408.0,0.05657903]
[1768766595765,0.1087741,95430.0,95409.0,0.0926167]
[1768766596068,0.1087741,95430.0,95410.0,0.0926167]
[1768766599365,0.1087741,95430.0,95410.0,0.20972142]
[1768766599566,0.1087741,95430.0,95411.0,0.0926167]
[1768766599967,0.1087741,95430.0,95411.0,0.20972142]
[1768766600162,0.09436,95431.0,95413.0,0.0926167]
[1768766600358,0.09436,95431.0,95413.0,0.22020542]
[1768766600565,0.09436,95431.0,95414.0,0.0926167]
[1768766611082,0.10953828,95430.0,95414.0,0.0926167]
[1768766613583,0.10953828,95430.0,95411.0,0.05657903]
[1768766614285,0.10953828,95430.0,95411.0,0.14941396]
[1768766615175,0.10953828,95430.0,95412.0,0.09283493]
[1768766617394,0.11244238,95428.0,95409.0,0.05657903]
[1768766617596,0.11244238,95427.0,95409.0,0.05657903]
[1768766618495,0.11244238,95427.0,95409.0,0.15178258]
[1768766619397,0.11244238,95427.0,95407.0,0.15093903]
[1768766619692,0.11244238,95421.0,95406.0,0.05657903]
[1768766619897,0.11244238,95419.0,95403.0,0.05657903]
[1768766620196,0.11244238,95419.0,95402.0,0.05657903]
[1768766620398,0.11244238,95419.0,95402.0,0.09520355]
[1768766620784,0.09136453,95417.0,95396.0,0.09520355]
[1768766620989,0.11244238,95414.0,95393.0,0.09436]
[1768766621199,0.11244238,95414.0,95392.0,0.09520355]
[1768766621390,0.11244238,95414.0,95394.0,0.09520355]
[1768766623401,0.010484,95412.0,95394.0,0.09520355]
[1768766623993,0.010484,95409.0,95394.0,0.09520355]
[1768766625403,0.104844,95409.0,95394.0,0.09520355]
[1768766626004,0.010485,95406.0,95394.0,0.09520355]
[1768766626499,0.010485,95402.0,95394.0,0.09520355]
[1768766626697,0.010486,95397.0,95381.0,0.11525445]
[1768766626893,0.010486,95392.0,95377.0,0.01425551]
[1768766627096,0.010486,95392.0,95375.0,0.11525445]
[1768766628199,0.010486,95396.0,95375.0,0.11525445]
[1768766628404,0.12292838,95396.0,95375.0,0.11525445]
[1768766628606,0.12292838,95396.0,95378.0,0.09520355]
[1768766629006,0.010486,95396.0,95379.0,0.210458]
[1768766629203,0.09436,95398.0,95383.0,0.09520355]
[1768766632406,0.010485,95400.0,95384.0,0.20954937]
[1768766632604,0.010485,95400.0,95387.0,0.09355951]
[1768766632808,1.3064,95413.0,95392.0,0.09355951]
[1768766633108,0.010485,95402.0,95392.0,0.09355951]
[1768766633301,0.0944,95401.0,95392.0,0.09355951]
[1768766633702,0.0944,95401.0,95378.0,0.11598986]
[1768766635608,0.0944,95401.0,95380.0,0.11598986]
[1768766635813,0.0944,95401.0,95382.0,0.11598986]
[1768766636004,0.0944,95401.0,95383.0,0.09355951]
[1768766636204,0.0944,95401.0,95385.0,0.09355951]
[1768766636511,0.0944,95401.0,95387.0,0.09355951]
[1768766637017,0.10458584,95400.0,95387.0,0.09355951]
[1768766641209,0.10458584,95400.0,95382.0,0.11598986]
[1768766641413,0.10458584,95400.0,95377.0,0.129329]
[1768766641610,0.10458584,95400.0,95379.0,0.11598986]
[1768766643117,0.11805564,95399.0,95379.0,0.11598986]
[1768766643413,0.11805564,95399.0,95380.0,0.09355951]
[1768766643613,0.11805564,95399.0,95381.0,0.09355951]
[1768766645313,0.10458584,95400.0,95382.0,0.09355951]
[1768766645512,0.0944,95401.0,95385.0,0.09355951]
[1768766645710,0.10458584,95400.0,95385.0,0.09355951]
[1768766645913,0.010486,95396.0,95385.0,0.09355951]
[1768766647119,0.10458584,95400.0,95385.0,0.09355951]
[1768766647621,0.0944,95401.0,95385.0,0.20954937]
[1768766647822,0.10458584,95400.0,95386.0,0.09355951]
[1768766648620,0.0944,95401.0,95386.0,0.09355951]
[1768766648922,0.10458584,95400.0,95386.0,0.09355951]
[1768766649426,0.0944,95401.0,95386.0,0.09355951]
[1768766649727,0.0944,95401.0,95389.0,0.09355951]
[1768766649728,0.10458584,95400.0,95389.0,0.09355951]
[1768766649923,0.0944,95401.0,95389.0,0.09355951]
[1768766652923,0.11805564,95408.0,95390.0,0.10458584]
[1768766653132,0.0944,95407.0,95392.0,0.09355951]
[1768766653430,0.0944,95407.0,95394.0,0.09355951]
[1768766655425,0.0944,95406.0,95394.0,0.09355951]
[1768766665238,0.0944,95406.0,95390.0,0.19775316]
[1768766666133,0.0944,95406.0,95390.0,0.09316732]
[1768766666333,0.0944,95406.0,95391.0,0.09316732]
[1768766667037,0.0944,95405.0,95392.0,0.09316732]
[1768766689652,0.0944,95407.0,95397.0,0.09841021]
[1768766693956,0.0944,95407.0,95391.0,0.09659062]
[1768766694359,0.0944,95407.0,95392.0,0.09659062]
[1768766708975,0.20930385,95410.0,95392.0,0.09659062]
[1768766716273,0.11490385,95409.0,95392.0,0.09659062]
[1768766719482,0.0944,95410.0,95397.0,0.09659062]
[1768766719683,0.0944,95410.0,95399.0,0.09659062]
[1768766722583,0.11492033,95422.0,95400.0,0.09260905]
[1768766722786,0.09896568,95423.0,95400.0,0.09260905]
[1768766722787,0.23168225,95421.0,95401.0,0.09260905]
[1768766722987,0.13728225,95420.0,95401.0,0.09260905]
[1768766723189,0.11492033,95418.0,95401.0,0.09260905]
[1768766723488,0.13728225,95417.0,95401.0,0.09260905]
[1768766723680,0.02236192,95416.0,95401.0,0.09260905]
[1768766723880,0.02236192,95415.0,95401.0,0.09260905]
[1768766724086,0.02236192,95414.0,95401.0,0.09260905]
[1768766724285,0.02236192,95413.0,95401.0,0.09260905]
[1768766724482,0.11492033,95417.0,95401.0,0.09260905]
[1768766724681,0.02235958,95416.0,95401.0,0.09260905]
[1768766724891,0.02235958,95415.0,95401.0,0.09260905]
[1768766725191,0.02235958,95414.0,95401.0,0.09260905]
[1768766725390,0.11492033,95417.0,95401.0,0.09260905]
[1768766725590,0.02235891,95416.0,95401.0,0.09260905]
[1768766725786,0.02235891,95415.0,95401.0,0.09260905]
[1768766725985,0.02235891,95414.0,95401.0,0.09260905]
[1768766726186,0.11492033,95417.0,95401.0,0.09260905]
[1768766726387,0.02235881,95416.0,95401.0,0.09260905]
[1768766726592,0.02235881,95415.0,95401.0,0.09260905]
[1768766726890,0.02235881,95414.0,95401.0,0.09260905]
[1768766727190,0.11492033,95417.0,95401.0,0.09260905]
[1768766727380,0.02235825,95416.0,95401.0,0.09260905]
[1768766727576,0.02235825,95415.0,95401.0,0.09260905]
[1768766727782,0.02235825,95414.0,95401.0,0.09260905]
[1768766727981,0.11492033,95417.0,95401.0,0.09260905]
[1768766728191,0.0223579,95416.0,95401.0,0.09260905]
[1768766728390,0.0223579,95415.0,95401.0,0.09260905]
[1768766728591,0.0223579,95414.0,95401.0,0.09260905]
[1768766728799,0.11492033,95417.0,95401.0,0.09260905]
[1768766728994,0.022358,95416.0,95401.0,0.09260905]
[1768766729190,0.022358,95415.0,95401.0,0.09260905]
[1768766729392,0.022358,95414.0,95401.0,0.09260905]
[1768766729691,0.11492033,95417.0,95401.0,0.09260905]
[1768766729988,0.02235774,95416.0,95401.0,0.09260905]
[1768766730293,0.02235774,95415.0,95401.0,0.09260905]
[1768766730484,0.02235774,95414.0,95401.0,0.09260905]
[1768766730680,0.11492033,95417.0,95401.0,0.09260905]
[1768766730886,0.0223575,95416.0,95401.0,0.09260905]
[1768766731191,0.0223575,95415.0,95402.0,0.09260905]
[1768766731391,0.0223575,95414.0,95402.0,0.09260905]
[1768766731594,0.11492033,95417.0,95402.0,0.09260905]
[1768766731788,0.02235734,95416.0,95402.0,0.09260905]
[1768766732090,0.0944,95421.0,95408.0,0.09260905]
[1768766732292,0.0944,95421.0,95409.0,0.09260905]
[1768766738899,0.0944,95421.0,95403.0,0.09382689]
[1768766739099,0.0944,95421.0,95404.0,0.09382689]